bitfinex/quotes_ETHUSD_20220731
["timestamp","ask_amount","ask_price","bid_price","bid_amount"]
[1659226788417,2.39804672,1700.1,1699.1,3.9414]
[1659226788638,0.05,1700.0,1699.3,3.5]
[1659226788841,0.4412,1699.9,1699.3,3.5]
[1659226789059,0.4912,1700.0,1699.3,3.5]
[1659226789265,3.19804672,1700.0,1699.3,3.9414]
[1659226789464,0.4912,1700.1,1699.3,3.5]
[1659226789753,0.4912,1700.1,1699.4,0.34471435]
[1659226789754,0.05,1700.1,1699.4,0.34471435]
[1659226789958,3.7911,1700.2,1699.4,0.34471435]
[1659226790167,6.63914672,1700.2,1699.4,0.34471435]
[1659226790764,6.63914672,1700.2,1699.5,3.5]
[1659226790963,6.19804672,1700.2,1699.5,3.5]
[1659226791132,6.49804672,1700.2,1699.5,3.5]
[1659226791654,2.89804672,1700.1,1699.4,0.05]
[1659226791857,3.4412,1700.0,1699.3,0.05]
[1659226792074,6.63924672,1700.0,1699.2,3.55]
[1659226792266,6.68924672,1700.0,1699.2,6.39804672]
[1659226792572,3.7912,1700.0,1699.3,3.24276107]
[1659226792774,0.3,1700.0,1699.7,3.5]
[1659226792945,2.8143,1700.3,1699.7,6.39804672]
[1659226793268,2.7643,1700.3,1699.8,3.24276107]
[1659226793628,2.7643,1700.3,1699.8,0.34471435]
[1659226794345,3.3643,1700.3,1699.8,0.34471435]
[1659226794527,3.2643,1700.3,1699.8,0.34471435]
[1659226795554,3.2643,1700.3,1699.8,3.24276107]
[1659226796884,2.7643,1700.3,1699.8,3.24276107]
[1659226797288,2.7643,1700.3,1699.6,0.05]
[1659226797289,2.89804672,1700.2,1699.6,0.05]
[1659226797468,3.33914672,1700.2,1699.4,3.55]
[1659226797661,2.89804672,1700.1,1699.3,0.05]
[1659226797975,3.42410333,1700.1,1699.2,0.05]
[1659226798173,6.33924672,1700.0,1699.2,0.05]
[1659226798374,3.3912,1700.0,1699.5,0.2]
[1659226798584,3.3912,1700.0,1699.5,2.89804672]
[1659226798585,0.3412,1700.0,1699.5,2.89804672]
[1659226798788,0.6,1700.1,1699.5,2.89804672]
[1659226799257,3.65,1700.2,1699.5,2.89804672]
[1659226799456,3.33924672,1700.1,1699.4,0.05]
[1659226799690,6.49804672,1700.0,1699.3,0.05]
[1659226799955,6.49804672,1700.0,1699.2,2.939]
[1659226800084,6.49804672,1700.0,1699.3,3.24276107]
[1659226800085,3.65,1700.0,1699.3,3.24276107]
[1659226800288,3.65,1700.0,1699.4,6.83934672]
[1659226800289,0.3,1700.0,1699.4,6.83934672]
[1659226800486,3.35,1700.2,1699.4,6.39804672]
[1659226800804,6.49804672,1700.2,1699.4,6.39804672]
[1659226800999,6.49804672,1700.2,1699.5,0.34471435]
[1659226801161,6.93914672,1700.2,1699.5,0.34471435]
[1659226801702,2.89804672,1700.1,1699.5,0.34471435]
[1659226801913,2.89804672,1700.1,1699.5,0.3477665]
[1659226802062,3.19804672,1700.1,1699.5,0.3477665]
[1659226802262,2.89804672,1700.0,1699.5,0.3477665]
[1659226802699,3.19804672,1700.0,1699.5,0.34471435]
[1659226802899,0.3,1700.0,1699.5,3.84471435]
[1659226803063,0.3,1700.1,1699.5,3.84471435]
[1659226803266,4.0911,1700.2,1699.6,0.2]
[1659226803463,6.93914672,1700.2,1699.6,0.2]
[1659226803929,6.93914672,1700.2,1699.5,3.84471435]
[1659226804113,3.6,1700.2,1699.6,0.2]
[1659226804439,3.6,1700.2,1699.9,0.2]
[1659226804739,0.3,1700.3,1700.1,0.2]
[1659226804893,10.9635,1700.6,1700.1,0.54471435]
[1659226805093,7.9135,1700.6,1700.1,0.54471435]
[1659226805990,7.9135,1700.6,1700.1,0.34471435]
[1659226806788,8.2135,1700.6,1700.1,0.34471435]
[1659226806990,3.3,1700.5,1700.1,0.34471435]
[1659226808038,8.2135,1700.6,1700.2,0.07329245]
[1659226808039,7.9135,1700.6,1700.2,0.07329245]
[1659226808221,7.9135,1700.6,1700.2,0.51439245]
[1659226808737,7.9135,1700.6,1700.2,0.07329245]
[1659226809097,0.02992723,1700.3,1700.2,0.07329245]
[1659226809530,0.02992723,1700.3,1700.2,4.56229245]
[1659226809698,0.05,1700.7,1700.6,1.9]
[1659226809893,0.05,1701.1,1701.0,0.2]
[1659226810133,17.9197,1701.9,1701.2,0.2]
[1659226810134,0.05,1701.5,1701.2,0.2]
[1659226810332,0.05,1701.8,1701.5,0.2]
[1659226810534,25.8184,1701.9,1701.5,0.2]
[1659226810720,22.7148,1701.9,1701.5,0.2]
[1659226810892,22.7148,1701.9,1701.7,0.2]
[1659226812137,22.89085661,1701.9,1701.3,0.05]
[1659226812348,22.89085661,1701.9,1701.2,3.5]
[1659226812516,22.89085661,1701.9,1701.2,6.7545386]
[1659226812859,22.89085661,1701.9,1701.2,3.2545386]
[1659226813014,23.19085661,1701.9,1701.2,6.7545386]
[1659226813214,3.0,1701.8,1701.2,6.7545386]
[1659226814118,3.0,1701.8,1701.0,11.3718]
[1659226814119,3.63874672,1701.7,1701.0,0.05]
[1659226814350,3.63874672,1701.7,1700.9,0.05]
[1659226814351,5.89804672,1701.6,1700.9,0.05]
[1659226814547,3.63884672,1701.5,1700.8,0.05]
[1659226814747,5.89804672,1701.4,1700.7,0.05]
[1659226815008,5.89804672,1701.4,1700.6,0.05]
[1659226815009,3.63884672,1701.3,1700.6,0.05]
[1659226815206,5.89804672,1701.2,1700.5,3.55]
[1659226815530,5.89804672,1701.2,1700.5,3.5]
[1659226815679,5.89804672,1701.2,1700.4,0.05]
[1659226815680,0.17605661,1701.1,1700.4,0.05]
[1659226816022,13.71674672,1701.2,1700.5,0.35193374]
[1659226816377,13.66674672,1701.2,1700.5,0.35193374]
[1659226817373,2.89804672,1701.1,1700.5,0.35193374]
[1659226817577,6.63894672,1701.0,1700.3,0.05]
[1659226817809,6.63894672,1701.0,1700.2,0.05]
[1659226817810,2.89804672,1700.9,1700.2,0.05]
[1659226817973,3.741,1700.8,1700.2,0.05]
[1659226818173,0.3,1700.6,1700.0,0.05]
[1659226818418,3.3,1700.6,1700.0,0.35193586]
[1659226818624,0.05,1700.7,1700.2,0.2]
[1659226818860,0.05,1700.9,1700.2,3.33914672]
[1659226819004,1.591,1701.0,1700.2,3.33914672]
[1659226819005,1.641,1701.0,1700.3,3.85193459]
[1659226819313,1.591,1701.0,1700.3,0.35193459]
[1659226821026,1.591,1701.0,1700.3,3.85193459]
[1659226822504,1.591,1701.0,1700.3,0.35193459]
[1659226823303,1.591,1701.0,1700.3,0.55193459]
[1659226823505,1.591,1701.0,1700.3,0.35193459]
[1659226826850,4.48904672,1701.0,1700.3,0.79303459]
[1659226827043,5.89804672,1700.9,1700.3,0.35193459]
[1659226827244,3.0,1700.8,1700.3,0.35193459]
[1659226827443,3.3,1700.8,1700.3,0.35193459]
[1659226827642,3.6,1700.8,1700.3,0.35193459]
[1659226829749,3.37410333,1700.7,1700.1,0.05]
[1659226829942,3.37410333,1700.7,1699.9,0.4412]
[1659226829943,2.89804672,1700.6,1699.9,0.05]
[1659226830144,3.0,1700.5,1699.8,14.291]
[1659226830448,6.67410333,1700.5,1699.8,14.61378732]
[1659226830648,6.67410333,1700.5,1699.8,14.61612676]
[1659226830867,6.67410333,1700.5,1699.8,3.44792676]
[1659226831395,6.67410333,1700.5,1699.8,3.44339913]
[1659226831913,2.89804672,1700.4,1699.8,0.37278732]
[1659226832049,3.3,1700.3,1699.8,0.00347608]
[1659226832253,2.89804672,1700.2,1699.8,0.00347608]
[1659226832565,0.4412,1700.1,1699.8,0.00347608]
[1659226832764,2.89804672,1700.0,1699.8,0.00347608]
[1659226832976,2.89804672,1700.0,1699.4,0.05]
[1659226832977,10.66244672,1700.0,1699.4,0.05]
[1659226833163,8.24045661,1700.0,1699.2,3.55]
[1659226833360,3.0,1699.9,1699.4,0.34471435]
[1659226833546,3.0,1699.9,1699.6,0.00347655]
[1659226833788,3.3,1699.9,1699.6,0.00347655]
[1659226834367,0.3,1699.9,1699.5,3.5]
[1659226834565,8.3644,1700.0,1699.5,3.5]
[1659226835562,8.3644,1700.0,1699.5,6.59804672]
[1659226835760,8.3644,1700.0,1699.6,0.34471435]
[1659226838170,0.05,1700.2,1699.8,3.7]
[1659226838405,0.05,1700.4,1699.9,0.34471435]
[1659226838601,10.6552,1700.5,1699.9,0.34471435]
[1659226839567,10.6552,1700.5,1700.1,0.2]
[1659226839766,10.6552,1700.5,1699.9,0.34471435]
[1659226839767,11.2552,1700.5,1699.9,0.54471435]
[1659226840220,11.2552,1700.5,1699.9,0.34471435]
[1659226840977,11.2552,1700.5,1700.0,0.2]
[1659226843531,11.2552,1700.5,1699.9,0.34471435]
[1659226844038,3.19804672,1700.4,1699.9,0.34471435]
[1659226844246,3.0,1700.3,1699.7,2.8349]
[1659226844555,3.3,1700.3,1699.8,0.00285315]
[1659226845403,3.3,1700.3,1699.7,3.13228495]
[1659226846027,3.3,1700.3,1699.7,3.13513824]
[1659226846231,0.3,1700.3,1699.7,3.13513824]
[1659226846436,3.24804672,1700.4,1699.7,3.13513824]
[1659226846437,3.54804672,1700.4,1699.7,3.13513824]
[1659226846604,3.49804672,1700.4,1699.7,3.13513824]
[1659226846805,3.49804672,1700.4,1699.6,0.05]
[1659226846806,6.07410333,1700.3,1699.6,0.05]
[1659226847034,3.33914672,1700.2,1699.5,0.05]
[1659226847235,3.33914672,1700.2,1699.7,0.0022208]
[1659226847236,5.89804672,1700.1,1699.7,0.0022208]
[1659226847436,3.33924672,1700.0,1699.7,0.0022208]
[1659226847641,0.6,1700.0,1699.7,0.0022208]
[1659226848145,1.591,1700.2,1699.5,0.34471435]
[1659226848557,1.591,1700.2,1699.6,3.5]
[1659226848958,0.4911,1700.4,1700.3,0.2]
[1659226848959,0.05,1700.4,1700.3,0.2]
[1659226849126,0.05,1700.8,1700.6,0.2]
[1659226849327,11.1415,1701.0,1700.6,0.2]
[1659226849530,7.5721,1701.0,1700.6,0.2]
[1659226850075,7.5721,1701.0,1700.5,0.34471435]
[1659226850281,7.5721,1701.0,1700.3,0.4911]
[1659226850451,7.5721,1701.0,1700.2,3.3206]
[1659226850633,7.6221,1701.0,1700.3,0.34471435]
[1659226850834,3.0,1700.9,1700.3,0.34471435]
[1659226851578,3.0,1700.9,1700.3,0.54471435]
[1659226851984,3.0,1700.9,1700.6,0.2]
[1659226853268,3.0,1700.9,1700.3,0.39471435]
[1659226853522,3.0,1700.9,1700.3,0.34471435]
[1659226853872,3.0,1700.9,1700.3,3.24276107]
[1659226854073,3.0,1700.9,1700.3,3.68386107]
[1659226854409,3.0,1700.9,1700.3,3.68157234]
[1659226855081,3.0,1700.9,1700.2,2.8295]
[1659226855279,0.00228873,1700.8,1700.2,5.72754672]
[1659226856122,0.00228873,1700.8,1700.2,9.61896061]
[1659226856429,0.00228873,1700.8,1700.2,10.06006061]
[1659226856639,0.00228873,1700.8,1700.2,9.61896061]
[1659226858318,0.00228873,1700.8,1700.2,6.11896061]
[1659226859220,0.00228873,1700.8,1700.3,0.2]
[1659226859918,0.00228873,1700.8,1700.3,6.59804672]
[1659226860715,2.89804672,1700.7,1700.1,0.05]
[1659226861055,3.3,1700.6,1700.0,3.1356]
[1659226861262,3.6,1700.6,1700.0,3.1356]
[1659226861771,3.6,1700.6,1700.0,6.37607234]
[1659226862071,0.3,1700.6,1700.0,6.81727234]
[1659226862234,0.3,1700.6,1700.0,6.37607234]
[1659226864340,3.19804672,1700.6,1700.0,0.34242562]
[1659226864543,0.00228873,1700.5,1700.0,0.34242562]
[1659226866669,0.6,1700.6,1700.2,0.2]
[1659226866875,3.05,1700.7,1700.2,0.2]
[1659226866876,0.3,1700.7,1700.5,0.4]
[1659226867079,0.3,1700.7,1700.6,0.2]
[1659226867246,0.00228873,1700.9,1700.6,0.2]
[1659226867448,0.00228873,1700.9,1700.3,3.49047234]
[1659226867694,2.90033545,1700.9,1700.3,0.34242562]
[1659226867898,2.89804672,1700.8,1700.1,0.05]
[1659226868192,2.89804672,1700.8,1700.0,0.4912]
[1659226868193,0.30228873,1700.7,1700.0,0.4912]
[1659226868380,0.30228873,1700.7,1699.6,6.6414]
[1659226868381,2.89804672,1700.6,1699.9,0.05]
[1659226868692,1.041,1700.5,1699.8,0.05]
[1659226868889,2.89804672,1700.4,1699.7,0.05]
[1659226869052,14.27594672,1700.4,1699.8,0.00347608]
[1659226869253,6.19804672,1700.3,1699.8,0.00347608]
[1659226869468,3.7411,1700.3,1699.8,0.00347608]
[1659226869674,3.3,1700.3,1699.8,2.9015228]
[1659226869873,0.3,1700.3,1699.9,2.89804672]
[1659226870201,8.6794,1700.4,1699.9,2.89804672]
[1659226870370,8.6794,1700.4,1700.0,0.2]
[1659226870849,8.6794,1700.4,1700.0,3.7]
[1659226871053,0.05,1700.7,1700.3,0.2]
[1659226871288,5.9493,1700.8,1700.4,3.25846001]
[1659226871289,8.0991,1700.8,1700.4,3.25846001]
[1659226873196,8.6991,1700.8,1700.4,3.25846001]
[1659226875789,8.6991,1700.8,1700.4,0.36041329]
[1659226875979,8.6991,1700.8,1700.1,8.3426]
[1659226876184,3.3,1700.7,1700.1,8.2926]
[1659226876358,3.3,1700.7,1699.9,2.9364]
[1659226876704,3.3,1700.7,1700.0,2.89804672]
[1659226877887,3.3,1700.7,1700.0,3.24047234]
[1659226878659,3.3,1700.7,1700.1,2.89804672]
[1659226878961,14.4796,1700.8,1700.2,0.2]
[1659226878962,11.2645,1700.8,1700.2,0.2]
[1659226879174,10.8235,1700.8,1700.3,2.89804672]
[1659226879380,10.8235,1700.8,1700.4,0.0614916]
[1659226879995,0.05,1701.0,1700.6,0.2]
[1659226880259,0.4408,1701.4,1700.7,0.34242562]
[1659226880260,0.05310023,1701.2,1700.7,0.34242562]
[1659226880490,0.00310023,1701.2,1700.7,3.84242562]
[1659226880704,0.00310023,1701.2,1700.7,4.03996467]
[1659226880992,0.00310023,1701.2,1700.8,2.89804672]
[1659226881205,10.4771,1701.4,1700.8,2.89804672]
[1659226881418,10.4271,1701.4,1701.0,0.19753905]
[1659226882507,11.50228873,1701.5,1701.0,0.19753905]
[1659226883303,11.50228873,1701.5,1701.0,3.09558577]
[1659226883504,0.00228873,1701.5,1701.0,3.09558577]
[1659226883717,0.30228873,1701.5,1701.0,3.09558577]
[1659226884018,0.30228873,1701.5,1700.9,0.36258257]
[1659226884019,0.47834534,1701.5,1700.9,0.36258257]
[1659226884181,0.17834534,1701.5,1700.9,0.36258257]
[1659226884384,0.00246095,1701.0,1700.7,0.05]
[1659226884702,3.33884672,1701.4,1700.4,3.0905]
[1659226884703,0.00228873,1700.9,1700.4,3.0905]
[1659226884906,0.00228873,1700.9,1700.4,3.0405]
[1659226884907,0.12605661,1700.9,1700.4,3.0405]
[1659226885259,0.17834534,1700.8,1700.2,7.8327]
[1659226885460,0.00228873,1700.8,1700.2,7.7827]
[1659226885702,0.17834534,1700.8,1700.1,2.7975]
[1659226885872,0.17834534,1700.8,1700.1,5.69554672]
[1659226886278,0.00228873,1700.8,1700.1,6.03797234]
[1659226886574,0.00228873,1700.8,1700.1,6.23551139]
[1659226886785,0.00228873,1700.8,1700.4,0.19753905]
[1659226886982,0.00228873,1700.8,1700.5,2.89804672]
[1659226887360,14.6342,1701.1,1700.5,6.39804672]
[1659226887361,13.6432,1701.1,1700.5,6.39804672]
[1659226887594,13.5932,1701.1,1700.6,0.19753905]
[1659226887787,10.6731,1701.1,1700.5,2.89804672]
[1659226888589,10.67538873,1701.1,1700.5,2.89804672]
[1659226888793,3.3,1701.0,1700.5,3.24047234]
[1659226889711,3.3,1701.0,1700.5,3.43801139]
[1659226890316,3.29740963,1701.0,1700.5,3.43801139]
[1659226892147,3.29740963,1701.0,1700.6,2.89804672]
[1659226892349,0.29740963,1701.0,1700.6,2.89804672]
[1659226892521,10.97538873,1701.1,1700.6,2.89804672]
[1659226892522,11.27538873,1701.1,1700.6,2.89804672]
[1659226892726,0.05,1701.3,1700.9,0.19753905]
[1659226892915,0.05,1701.5,1700.9,3.09558577]
[1659226893265,0.00405021,1701.5,1700.9,3.09558577]
[1659226893603,0.00405021,1701.5,1701.2,0.19753905]
[1659226893805,8.0956,1701.6,1701.2,0.19753905]
[1659226894440,11.5,1701.7,1701.2,0.19753905]
[1659226894795,0.05303004,1701.9,1701.4,0.19753905]
[1659226894969,0.05303004,1701.9,1701.4,3.09558577]
[1659226894970,0.00303004,1701.9,1701.4,3.09558577]
[1659226895344,0.00303004,1701.9,1701.4,3.44027875]
[1659226895544,0.00228873,1701.9,1701.4,3.44027875]
[1659226895749,0.00228873,1701.9,1701.4,0.54223203]
[1659226897373,0.00228873,1701.9,1701.4,0.34469298]
[1659226897750,6.70033545,1701.9,1701.2,0.05]
[1659226897950,6.70033545,1701.9,1701.1,3.206]
[1659226897951,6.51480333,1701.8,1701.1,3.256]
[1659226898155,0.00246095,1701.6,1701.1,3.206]
[1659226901716,0.00474968,1701.6,1701.1,3.206]
[1659226901874,0.00228873,1701.6,1701.1,3.5518272]
[1659226902527,0.00228873,1701.6,1701.2,2.89804672]
[1659226902882,0.00228873,1701.6,1701.2,3.09558577]
[1659226903118,0.00228873,1701.6,1701.3,2.89804672]
[1659226903781,0.00228873,1701.6,1701.1,3.5518272]
[1659226907303,0.00474968,1701.6,1701.1,3.5518272]
[1659226907592,0.00228873,1701.6,1701.1,3.5518272]
[1659226913574,0.05,1701.8,1701.2,7.19753905]
[1659226913775,1.041,1701.9,1701.3,0.34582677]
[1659226914009,3.88904672,1701.9,1701.3,0.34582677]
[1659226914175,0.991,1701.9,1701.3,0.34244403]
[1659226914576,9.08184672,1702.0,1701.3,0.78324403]
[1659226914794,9.03184672,1702.0,1701.3,0.78324403]
[1659226915011,9.03184672,1702.0,1701.4,0.19753905]
[1659226915229,0.00228873,1701.9,1701.4,0.19753905]
[1659226915423,3.30228873,1701.9,1701.4,0.19753905]
[1659226915579,3.60228873,1701.9,1701.4,0.19753905]
[1659226915781,6.50033545,1701.9,1701.4,0.19753905]
[1659226916023,0.00338274,1701.8,1701.4,0.19753905]
[1659226916754,0.00228873,1701.7,1701.3,0.34242562]
[1659226919715,0.00228873,1701.7,1701.2,2.9929]
[1659226922858,2.90033545,1701.7,1701.0,0.4909]
[1659226923043,3.30246095,1701.6,1700.9,11.4283]
[1659226923214,3.30246095,1701.6,1700.9,14.27634672]
[1659226923415,0.00338274,1701.5,1700.9,14.27634672]
[1659226923616,0.00338274,1701.5,1700.9,13.83544672]
[1659226924451,0.00338274,1701.5,1700.9,10.9374]
[1659226924649,6.40389041,1701.5,1700.9,10.9374]
[1659226924875,3.6,1701.4,1700.9,10.9374]
[1659226925066,3.6,1701.4,1700.9,2.7443]
[1659226926795,3.60338274,1701.4,1700.9,2.7443]
[1659226926947,6.50371819,1701.4,1700.7,11.78973905]
[1659226927148,6.50371819,1701.4,1700.7,11.5422]
[1659226927577,6.20371819,1701.4,1700.7,11.5422]
[1659226927856,0.00567147,1701.4,1700.8,6.74434935]
[1659226927998,0.00567147,1701.4,1700.8,9.63744935]
[1659226928160,0.00567147,1701.4,1700.8,9.6441011]
[1659226929371,0.00567147,1701.4,1700.8,6.33776314]
[1659226935493,0.00567147,1701.4,1700.9,0.4409]
[1659226937902,0.00567147,1701.4,1700.8,6.77876314]
[1659226938951,0.00567147,1701.4,1700.8,6.77488417]
[1659226939532,0.00567147,1701.4,1700.8,10.27488417]
[1659226939735,0.00567147,1701.4,1700.9,7.0]
[1659226940658,0.00567147,1701.4,1700.9,3.5]
[1659226940872,0.00567147,1701.4,1700.8,6.33388417]
[1659226941166,0.00567147,1701.4,1700.9,3.5]
[1659226943657,0.00567147,1701.4,1700.8,3.2382984]
[1659226943860,0.00567147,1701.4,1700.9,3.5]
[1659226945226,3.34130767,1701.3,1700.7,0.05]
[1659226945421,3.34130767,1701.3,1700.5,0.05]
[1659226945422,0.00246095,1700.7,1700.5,0.05]
[1659226945764,0.00246095,1700.5,1700.1,0.05]
[1659226945962,0.00246095,1700.2,1699.8,0.05241401]
[1659226946267,3.941,1700.6,1699.8,0.00241401]
[1659226946268,0.00246095,1700.0,1699.8,0.00241401]
[1659226946689,0.00246095,1700.0,1699.6,2.7186]
[1659226946899,0.00633992,1700.0,1699.6,2.71652451]
[1659226948353,0.00246095,1699.7,1699.3,0.05]
[1659226948694,0.00246095,1699.7,1699.1,10.0626]
[1659226948695,0.00387897,1699.6,1699.1,10.0626]
[1659226949047,1.18987897,1699.6,1699.5,0.00294558]
[1659226949289,1.48987897,1699.6,1699.5,0.00294558]
[1659226949460,4.69038664,1699.6,1699.5,0.00294558]
[1659226949656,1.18846095,1699.2,1699.1,0.05]
[1659226949861,0.30474968,1699.2,1698.8,2.7367]
[1659226950249,0.00474968,1699.2,1698.8,2.7367]
[1659226950865,0.00246095,1699.0,1698.8,2.7367]
[1659226951070,0.35,1699.4,1699.0,0.19753905]
[1659226951266,0.3,1699.4,1699.0,0.19753905]
[1659226951466,4.1012,1699.6,1699.2,0.19753905]
[1659226951467,1.591,1699.6,1699.2,0.19753905]
[1659226952191,0.6,1699.6,1699.2,0.19753905]
[1659226952350,0.3,1699.6,1699.2,0.19753905]
[1659226952553,3.60567147,1699.7,1699.2,0.19753905]
[1659226953387,3.60567147,1699.7,1699.2,0.37359566]
[1659226953744,3.60567147,1699.7,1699.2,3.27164238]
[1659226954236,3.60567147,1699.7,1699.2,3.71304238]
[1659226954398,0.60567147,1699.7,1699.3,0.33854665]
[1659226954604,0.00567147,1699.7,1699.3,0.33854665]
[1659226954802,0.05,1699.9,1699.3,6.91264998]
[1659226955005,9.2864,1700.0,1699.5,3.5]
[1659226955006,0.05,1700.0,1699.5,3.5]
[1659226955212,0.05,1700.2,1699.5,6.73659337]
[1659226955500,0.00955044,1700.2,1699.6,2.89804672]
[1659226956186,3.00955044,1700.2,1699.6,2.89804672]
[1659226956635,0.00955044,1700.2,1699.9,3.5]
[1659226956788,2.9799,1700.5,1699.9,3.5]
[1659226956789,8.3253,1700.5,1699.9,3.5]
[1659226956986,3.3204,1700.6,1699.9,6.39804672]
[1659226957286,8.3253,1700.7,1699.9,7.17779337]
[1659226957487,0.00955044,1700.6,1700.0,0.19753905]
[1659226957704,0.00955044,1700.6,1700.0,3.09558577]
[1659226958306,3.30955044,1700.6,1700.0,3.09558577]
[1659226959090,3.30955044,1700.6,1700.0,3.43413242]
[1659226959704,0.30955044,1700.6,1700.2,0.19753905]
[1659226959906,0.30955044,1700.6,1700.2,6.93413242]
[1659226959907,0.00955044,1700.6,1700.2,6.93413242]
[1659226960122,7.6247,1700.9,1700.2,6.93413242]
[1659226960305,7.5747,1700.9,1700.2,6.93413242]
[1659226960497,7.5747,1700.9,1700.5,0.19753905]
[1659226961137,7.8747,1700.9,1700.5,0.19753905]
[1659226961434,8.1747,1700.9,1700.5,0.19753905]
[1659226961641,6.2028,1701.1,1700.5,3.69753905]
[1659226961864,5.86054672,1701.1,1700.5,3.69753905]
[1659226962170,5.86054672,1701.1,1700.5,0.19753905]
[1659226963079,6.46054672,1701.1,1700.5,0.19753905]
[1659226963446,6.46054672,1701.1,1700.4,0.33854665]
[1659226963768,0.00955044,1701.0,1700.4,0.33854665]
[1659226964133,3.00955044,1701.0,1700.4,0.33854665]
[1659226964466,3.30955044,1701.0,1700.4,0.33854665]
[1659226964643,6.20759716,1701.0,1700.4,0.33854665]
[1659226964843,6.64849716,1701.0,1700.4,0.33854665]
[1659226965263,2.89804672,1700.9,1700.4,0.33854665]
[1659226965536,3.60955044,1700.8,1700.2,0.05]
[1659226965689,3.60955044,1700.8,1700.1,3.4396]
[1659226966139,0.00246095,1700.6,1700.1,3.77814665]
[1659226966291,0.00246095,1700.6,1700.0,8.1363]
[1659226966292,0.00955044,1700.5,1700.0,8.1363]
[1659226966493,2.90759716,1700.5,1700.0,8.1363]
[1659226966725,0.30955044,1700.5,1700.0,8.47484665]
[1659226966919,0.3,1700.5,1700.0,8.47484665]
[1659226967123,0.35,1700.7,1700.0,8.47484665]
[1659226967326,2.89804672,1700.6,1700.0,8.47484665]
[1659226967710,3.0,1700.5,1700.0,8.47484665]
[1659226967912,3.6,1700.5,1700.0,8.47484665]
[1659226968438,3.6,1700.5,1700.0,0.33854665]
[1659226968641,0.05,1700.7,1700.0,3.87533242]
[1659226968842,4.2033,1700.9,1700.5,0.19753905]
[1659226968843,0.05,1700.8,1700.5,0.19753905]
[1659226969135,4.2033,1700.9,1700.5,0.19753905]
[1659226969136,0.991,1700.9,1700.5,0.19753905]
[1659226969537,0.00368624,1701.0,1700.7,0.19753905]
[1659226969741,5.82005044,1701.1,1700.7,0.19753905]
[1659226969960,8.71809716,1701.1,1700.7,0.19753905]
[1659226970123,5.82005044,1701.1,1700.7,0.19753905]
[1659226970324,0.00368631,1701.3,1700.7,3.09558577]
[1659226970554,0.00368631,1701.3,1700.9,0.19483458]
[1659226971157,1.00055044,1701.4,1700.9,0.19483458]
[1659226971627,1.00055044,1701.4,1700.8,0.441]
[1659226972581,1.30055044,1701.4,1700.8,0.441]
[1659226972730,4.60055044,1701.4,1700.8,0.77954665]
[1659226972923,5.24257007,1701.4,1700.9,0.19483458]
[1659226973122,5.24257007,1701.4,1700.8,0.77954665]
[1659226973377,5.24257007,1701.4,1700.8,0.33854665]
[1659226974335,4.60055044,1701.4,1700.8,0.33854665]
[1659226977640,7.49859716,1701.4,1700.8,0.33854665]
[1659226977849,7.49859716,1701.4,1700.7,0.441]
[1659226978049,3.19804672,1701.3,1700.6,2.8139]
[1659226978231,3.19804672,1701.3,1700.6,2.7639]
[1659226978232,3.0,1701.2,1700.6,2.7639]
[1659226978431,6.19804672,1701.2,1700.6,2.7639]
[1659226978945,6.37033136,1701.2,1700.6,2.7639]
[1659226979534,2.89804672,1701.1,1700.5,8.321]
[1659226979747,3.3,1701.0,1700.5,8.321]
[1659226980066,3.3,1701.0,1700.4,5.8675]
[1659226980235,3.6,1701.0,1700.4,5.8675]
[1659226980848,3.6,1701.0,1700.4,6.25821178]
[1659226982367,3.60955044,1701.0,1700.4,6.25821178]
[1659226986604,3.60955044,1701.0,1700.4,9.95304636]
[1659226986987,0.60955044,1701.0,1700.4,9.95304636]
[1659226987199,0.00955044,1701.0,1700.4,9.95304636]
[1659226987857,0.00955044,1701.0,1700.4,9.75821178]
[1659226991155,0.00955044,1701.0,1700.4,6.25821178]
[1659226991355,0.00955044,1701.0,1700.4,6.10821178]
[1659226991604,0.00955044,1701.0,1700.4,9.60821178]
[1659226994614,0.00955044,1701.0,1700.4,6.10821178]
[1659226994766,0.00955044,1701.0,1700.2,7.6667]
[1659226994767,8.62021278,1701.0,1700.2,7.6667]
[1659226994972,6.69804672,1700.9,1700.2,7.6167]
[1659226995176,6.19804672,1700.8,1700.2,7.6167]
[1659226995381,0.0061677,1700.7,1700.2,7.6167]
[1659226995608,2.90421442,1700.7,1700.0,0.05]
[1659226995791,0.00516542,1700.3,1699.9,0.05]
[1659226996004,0.00516542,1700.3,1699.4,11.0994]
[1659226996005,1.486,1700.0,1699.6,0.05]
[1659226996168,1.486,1700.0,1699.4,11.0994]
[1659226996169,1.786,1700.0,1699.4,11.0994]
[1659226996377,1.786,1700.0,1699.4,15.0407]
[1659226996683,0.6,1700.0,1699.4,14.93794665]
[1659226996886,0.3,1700.0,1699.6,3.5]
[1659226997119,7.9775,1700.2,1699.6,3.5]
[1659226997120,8.2775,1700.2,1699.6,3.5]
[1659226997273,8.5275,1700.2,1699.6,3.83854665]
[1659226997475,8.5336677,1700.2,1699.6,3.83854665]
[1659226997816,8.5336677,1700.2,1699.6,4.03338123]
[1659226997970,0.05,1700.4,1700.1,7.19483458]
[1659226998170,3.20703038,1700.9,1700.2,0.77964665]
[1659226998171,0.05,1700.7,1700.2,0.77964665]
[1659226998369,11.21383038,1700.9,1700.2,0.77964665]
[1659226998572,11.16383038,1700.9,1700.2,0.77964665]
[1659226998873,11.17015044,1700.9,1700.2,3.67769337]
[1659226999071,11.17015044,1700.9,1700.2,3.23659337]
[1659226999302,11.17015044,1700.9,1700.2,3.43142795]
[1659226999516,11.17015044,1700.9,1700.3,0.05427502]
[1659227000275,11.77015044,1700.9,1700.3,0.05427502]
[1659227000613,11.77015044,1700.9,1700.4,0.33854665]
[1659227002094,0.05,1701.1,1700.6,0.19483458]
[1659227002377,1.4319,1701.2,1700.7,0.33854665]
[1659227002378,0.991,1701.2,1700.7,0.33854665]
[1659227002615,0.991,1701.2,1700.8,0.19483458]
[1659227002793,3.22119381,1701.4,1701.1,0.19483458]